Cogmind - Beta 16 *** ADVENTURER MODE // 2026.01.28 @ 13:18:41 Player: Roland Result: Destroyed by H-77 Assassin with Coil Gun Performance ------------- Evolutions (5) 2500 Regions Visited (7) 1400 Robots Destroyed (24) 120 Value Destroyed (1141) 1141 Prototype IDs (23) 460 Alien Tech Used (0) 0 Bonus (1854) 1854 TOTAL SCORE: 7475 Bonus ------- Registered with UFD 300 Met Optimus in HQ 500 Met Warlord at Base 500 MAIN.C Attacked Warlord 500 Warlord Defense Kills 54 Cogmind --------- Core Integrity 0/1000 Matter 285/300 Energy 85/100 System Corruption 3% Temperature Cool (0) Movement Core (100) Ox1 Location -5/Warlord Parts ------- > --- POWER (3) -------- (None) > --- PROPULSION (5) --- VTOL Module > --- UTILITY (6) ------ (None) > --- WEAPON (3) ------- Companion Sword > --- INVENTORY (5) ---- Backup Power III Light Antimatter Reactor VTOL Module Signal Generator Peak State ------------ > --- POWER ------------ Neutrino Core Micro Fission Core > --- PROPULSION ------- Armored Treads Improved Medium Treads > --- UTILITY ---------- Scrap Suit Compact Battery Surveybot 17 Chip Melee Analysis Suite > --- WEAPON ----------- Field Laser Heavy Machine Gun Companion Sword > --- INVENTORY -------- Carbon-fiber Leg Small Laser Scrap Shield Fragment Botcube [Rating: 56] Favorites ----------- Power Light Ion Engine Engine Light Ion Engine Power Core Neutrino Core Propulsion Aluminum Leg Treads Improved Medium Treads Leg Aluminum Leg Hover Unit Antigrav System Flight Unit Flight Unit Utility Scrap Suit Device Scrap Suit Storage Compact Battery Processor Surveybot 17 Chip Protection Hardened Medium Armor Plating Weapon Companion Sword Energy Gun Small Laser Ballistic Gun Heavy Machine Gun Ballistic Cannon Light Cannon Slashing Weapon Companion Sword Build | -11 -10 -10 -7 -5 -5 -5 -5 ------- Run | Yrd Mat Sub Scr Fac Upp Upp War Slots Evolved 10 | . . . . 10 . . . Power 2 | . . . . 2 . . . Propulsion 3 | . . . . 3 . . . Utility 4 | . . . . 4 . . . Weapon 1 | . . . . 1 . . . Parts Attached 33 | 5 2 2 3 2 8 4 7 Power 5 | 1 . 1 . . 2 . 1 Engine 2 | 1 . 1 . . . . . Core 3 | . . . . . 2 . 1 Reactor . | . . . . . . . . Propulsion 19 | 2 2 . . 2 3 4 6 Treads 3 | . . . . . 3 . . Leg 6 | 2 . . . . . 3 1 Wheel . | . . . . . . . . Hover 4 | . . . . 2 . . 2 Flight 6 | . 2 . . . . 1 3 Utility 5 | . . . 2 . 3 . . Device 1 | . . . 1 . . . . Storage 1 | . . . . . 1 . . Processor 2 | . . . . . 2 . . Hackware . | . . . . . . . . Protection 1 | . . . 1 . . . . Artifact . | . . . . . . . . Weapon 4 | 2 . 1 1 . . . . Energy Gun 2 | 2 . . . . . . . Energy Cannon . | . . . . . . . . Ballistic Gun . | . . . . . . . . Ballistic Cannon 1 | . . 1 . . . . . Launcher . | . . . . . . . . Special Weapon . | . . . . . . . . Impact Weapon . | . . . . . . . . Slashing Weapon 1 | . . . 1 . . . . Piercing Weapon . | . . . . . . . . Special Melee Weapon . | . . . . . . . . Unidentified Prototypes 1 | . . . 1 . . . . Parts Lost 31 | . . 4 . 1 7 10 9 Power 7 | . . 1 . . 2 2 2 Propulsion 16 | . . 2 . 1 4 4 5 Utility 4 | . . . . . . 2 2 Weapon 4 | . . 1 . . 1 2 . Highest Loss Streak 8 | . . 4 . 1 4 4 8 To Critical Strikes 2 | . . . . . . 2 . Average Backups 2 | 2 4 4 2 2 2 1 2 Power . | 1 1 . . . . . . Propulsion . | . 1 1 . . . . 2 Utility . | . . . . 1 . . . Weapon 1 | . 1 1 1 1 . 1 . Tool/Special . | . . . . . . . . Unused Backups 6 | . . . 4 . . . 2 Power 3 | . . . 2 . . . 1 Propulsion 1 | . . . . . . . 1 Utility . | . . . . . . . . Weapon 2 | . . . 2 . . . . Tool/Special . | . . . . . . . . Average Slot Usage (%) 57 | . 71 70 78 35 44 56 31 Engine 8 | . 14 13 14 8 2 . 3 Core 1 | . . . . . 5 3 . Treads 1 | . . . . . 5 8 . Leg 12 | . 5 6 28 9 . 13 . Hover 1 | . . . . 1 2 . 3 Flight 2 | . 23 21 . . . . 5 Device 3 | . . . 4 5 5 . . Processor 3 | . . . . . 5 11 10 Protection 3 | . . . 9 . . . . Energy Gun 6 | . 28 23 8 . 4 1 . Ballistic Cannon 3 | . . 4 8 2 . . . Slashing Weapon 4 | . . . 5 5 5 5 5 Peak Build Rating 56 | 5 5 5 18 38 56 56 34 Average Rating 23 | 2 5 4 11 24 40 42 23 On Entrance 18 | . 5 5 5 18 38 56 19 Avg Prop Armor Cover (%) 11 | 24 10 3 . 6 6 17 11 Naked Turns . | . . . . . . . . Heaviest Build 36 | 6 6 7 15 31 36 36 11 Greatest Support 50 | 10 10 20 20 22 50 50 35 Greatest Overweight (x) 9 | 1 . . . 1 9 . 2 Average Overweight (x) . | . . . . . . . . Largest Inventory Capacity 5 | 5 5 5 5 5 5 5 5 Average Capacity 5 | 5 5 5 5 5 5 5 5 Most Carried 5 | 5 5 5 5 5 5 5 5 Average Carried 4 | 2 4 4 4 4 4 3 4 Final Capacity 5 | 5 5 5 5 5 5 5 5 Final Carried 5 | 2 5 4 4 4 4 4 4 Scrap Suit Usage (%) 41 | . . . 28 93 90 8 . Parts Cannibalized 3 | . . . . . 3 . . Class Distribution -------------------- 71% | Mutant 17% | Scavenger-Mutant 10% | Scrapper Dominant Class ---------------- Mutant | -10/Materials Mutant | -10/Subcaves Mutant | -7/Scraptown Mutant | -5/Factory Mutant | -5/Upper Caves Scavenger-Mutant | -5/Upper Caves Mutant | -5/Warlord Resources | -11 -10 -10 -7 -5 -5 -5 -5 ----------- Run | Yrd Mat Sub Scr Fac Upp Upp War Matter Collected 648 | 170 100 . 64 50 156 53 55 Remotely . | . . . . . . . . Salvage Created 1198 | . 179 . . 210 386 393 30 Parts 43 | . 1 . . 9 17 13 3 Haulers Intercepted . | . . . . . . . . Recyclers Shooed . | . . . . . . . . Parts Field Recycled . | . . . . . . . . Retrieved Matter . | . . . . . . . . Parts Self-Destructed 24 | . . . . . 12 12 . Prevented 2 | . . . . . . 2 . Parts Restored . | . . . . . . . . Kills | -11 -10 -10 -7 -5 -5 -5 -5 ------- Run | Yrd Mat Sub Scr Fac Upp Upp War Combat Hostiles Destroyed 24 | . 4 . . 6 6 7 1 Melee 20 | . . . . 6 6 7 1 Guns 3 | . 3 . . . . . . Classes Destroyed 5 | . 1 . . 2 1 1 . Swarmer 7 | . . . . 4 . 2 1 Grunt 11 | . 4 . . . 3 4 . Sentry 1 | . . . . . . 1 . Programmer 4 | . . . . 2 2 . . Behemoth 1 | . . . . . 1 . . Best Kill Streak 4 | . 2 . . 4 2 4 1 Combat Bots Only 4 | . 2 . . 4 2 4 1 Max Kills in Single Turn 1 | . 1 . . 1 1 1 1 Gunslinging . | . . . . . . . . Exploded . | . . . . . . . . Melee 1 | . . . . 1 1 1 1 Uniques/NPCs Destroyed . | . . . . . . . . Combat | -11 -10 -10 -7 -5 -5 -5 -5 -------- Run | Yrd Mat Sub Scr Fac Upp Upp War Hostile Shots Fired 439 | . 9 35 . 52 99 95 149 Missed 152 | . 4 9 . 15 27 28 69 Hits 287 | . 5 26 . 37 72 67 80 Melee 3 | . . . . . . . 3 Projectile 284 | . 5 26 . 37 72 67 77 Critical Strikes 12 | . . 1 . 3 4 3 1 Part Disruptions 1 | . . . . . 1 . . Damage Taken 3884 | . 41 415 . 523 1079 922 904 Core 1167 | . 24 128 . 114 316 129 456 Absorbed by Shields . | . . . . . . . . Ignored by Resistances 1075 | . 13 117 . 144 297 244 260 Regen/Repaired (Parts) 217 | . . . 187 . 30 . . Core Remaining (%) 69 | 100 . . 39 . . . . Volleys Fired 40 | . 13 27 . . . . . Largest 2 | . 2 2 . . . . . Hottest 90 | . 90 90 . . . . . Shots Fired 80 | . 25 54 . . . 1 . Gun 74 | . 25 48 . . . 1 . Cannon 6 | . . 6 . . . . . Launcher . | . . . . . . . . Special . | . . . . . . . . Kinetic 7 | . . 6 . . . 1 . Thermal 73 | . 25 48 . . . . . Explosive . | . . . . . . . . Electromagnetic . | . . . . . . . . Robot Hit Streak 23 | . 10 23 . . . . . Robot Miss Streak 2 | . 2 1 . . . . . Penetration Max . | . . . . . . . . Secondary Targets . | . . . . . . . . Shots Hit Robots 136 | . 19 36 . 17 33 26 5 Core Hits 36 | . 5 1 . 7 11 11 1 Critical Kills . | . . . . . . . . Critical Parts Destroyed . | . . . . . . . . Critical Strikes 8 | . 4 . . . 2 2 . Burn 4 | . 4 . . . . . . Melee Attacks 88 | . . . . 19 36 28 5 Impact . | . . . . . . . . Slashing 88 | . . . . 19 36 28 5 Piercing . | . . . . . . . . Sneak Attacks 2 | . . . . . 1 1 . Combat Hostiles 1 | . . . . . 1 . . Follow-up Attacks 2 | . . . . . . 1 1 Damage Inflicted 3476 | . 232 11 . 667 1327 1042 197 Guns 243 | . 232 11 . . . . . Cannons . | . . . . . . . . Explosions . | . . . . . . . . Melee 3233 | . . . . 667 1327 1042 197 Ramming . | . . . . . . . . Kinetic . | . . . . . . . . Thermal 243 | . 232 11 . . . . . Explosive . | . . . . . . . . Electromagnetic . | . . . . . . . . Impact . | . . . . . . . . Slashing 3233 | . . . . 667 1327 1042 197 Piercing . | . . . . . . . . Highest Corruption 5 | . . . . 3 5 5 5 Average Corruption 4 | . . . . 2 4 5 3 Corruption Purged . | . . . . . . . . Corruption Blocked . | . . . . . . . . Effects 49 | . . . . 3 32 13 1 Message Errors 9 | . . . . . 5 3 1 Matter Fused 12 | . . . . 1 7 4 . Heat Flow Errors 11 | . . . . 1 8 2 . Energy Discharges 8 | . . . . 1 5 2 . Parts Fused 1 | . . . . . 1 . . Data Loss (minor) 4 | . . . . . 3 1 . Data Loss (major) 3 | . . . . . 3 . . Misfires 1 | . . . . . . 1 . Overload Shots . | . . . . . . . . Overflow Damage 128 | . . . . 26 52 29 21 Projectiles . | . . . . . . . . Explosions . | . . . . . . . . Melee 128 | . . . . 26 52 29 21 Knockbacks . | . . . . . . . . Impact . | . . . . . . . . Kinetic . | . . . . . . . . Secondary . | . . . . . . . . Self-Inflicted Damage . | . . . . . . . . Shots . | . . . . . . . . Rammed . | . . . . . . . . Targets Rammed . | . . . . . . . . Kicked . | . . . . . . . . Crushed . | . . . . . . . . Highest Temperature 248 | . 238 . . 248 220 237 . Average Temperature 96 | . 96 . . 126 93 91 . Received Heat Transfer 576 | . 30 . . . 246 273 27 Effects 1 | . . . . 1 . . . Interference 1 | . . . . 1 . . . Siege Activations . | . . . . . . . . Martial Activations . | . . . . . . . . Shielding Activations . | . . . . . . . . Robots Disrupted 1 | . . . . . . 1 . Combat Hostiles 1 | . . . . . . 1 . Robots Corrupted . | . . . . . . . . Combat Hostiles . | . . . . . . . . Parts Fried . | . . . . . . . . Impact Corruptions . | . . . . . . . . Robots Melted 1 | . 1 . . . . . . Combat Hostiles 1 | . 1 . . . . . . Parts Melted 2 | . 2 . . . . . . Heat Transferred 940 | . 915 25 . . . . . Parts Sabotaged . | . . . . . . . . Parts Stolen . | . . . . . . . . Parts Stripped . | . . . . . . . . Power Chain Reactions . | . . . . . . . . Alert | -11 -10 -10 -7 -5 -5 -5 -5 ------- Run | Yrd Mat Sub Scr Fac Upp Upp War Maximum Alert Level . | . . . . . . . . Low Security (%) 100 | 100 100 . . 100 . . . Level 1 . | . . . . . . . . Level 2 . | . . . . . . . . Level 3 . | . . . . . . . . Level 4 . | . . . . . . . . Level 5 . | . . . . . . . . High Security . | . . . . . . . . Max Security . | . . . . . . . . Peak Influence 90 | . 40 . . 90 . . . Initial . | . . . . . . . . Average 15 | . 11 . . 18 . . . Influence Increases 867 | . 100 . . 147 195 210 215 Destroy 0b10 Robot/C 480 | . 80 . . 120 120 140 20 Destroy Leader 80 | . 20 . . 20 30 10 . Successful Hack 7 | . . . . 7 . . . Lose Combat Pursuer 300 | . . . . . 45 60 195 Influence Decreases 802 | . 80 20 . 97 245 170 190 Entered New Map 74 | . . 11 . . 23 . 40 Time Decay 538 | . 80 9 . 87 182 120 60 Lost Part 190 | . . . . 10 40 50 90 Squads Dispatched 4 | . 2 . . 2 . . . Investigation 2 | . 2 . . . . . . Extermination 2 | . . . . 2 . . . Reinforcement . | . . . . . . . . Assault . | . . . . . . . . Garrison . | . . . . . . . . Intercept . | . . . . . . . . Searches Triggered . | . . . . . . . . Construction Impeded . | . . . . . . . . Haulers Reinforced . | . . . . . . . . Active Scanning Responses . | . . . . . . . . Cargo Convoy Interrupts . | . . . . . . . . Stealth | -11 -10 -10 -7 -5 -5 -5 -5 --------- Run | Yrd Mat Sub Scr Fac Upp Upp War Distress Signals 2 | . . . . . . . 2 Communications Jammed . | . . . . . . . . Distress Signals . | . . . . . . . . Times Spotted 65 | . 11 2 . 6 8 12 26 Peak Tracking Total 15 | . 5 1 . 4 3 4 15 Tactical Retreats 8 | . . . . . 2 3 3 Traps | -11 -10 -10 -7 -5 -5 -5 -5 ------- Run | Yrd Mat Sub Scr Fac Upp Upp War Traps Triggered 1 | . 1 . . . . . . Indirectly . | . . . . . . . . Trap Hack Attempts . | . . . . . . . . Triggered . | . . . . . . . . Disarmed . | . . . . . . . . Reprogrammed . | . . . . . . . . Reused . | . . . . . . . . Traps Extracted . | . . . . . . . . Installed . | . . . . . . . . Triggered . | . . . . . . . . Machines | -11 -10 -10 -7 -5 -5 -5 -5 ---------- Run | Yrd Mat Sub Scr Fac Upp Upp War Machines Disabled . | . . . . . . . . Max in Single Turn . | . . . . . . . . Machines Repaired . | . . . . . . . . Machines Dismantled . | . . . . . . . . Machines Sabotaged . | . . . . . . . . Overloaded Fab Kills . | . . . . . . . . Hacking | -11 -10 -10 -7 -5 -5 -5 -5 --------- Run | Yrd Mat Sub Scr Fac Upp Upp War Machines Accessed 18 | . . 1 7 3 . . 7 Terminals 1 | . . . . 1 . . . Fabricators 1 | . . . . 1 . . . Repair Stations 1 | . . . . 1 . . . Recycling Units . | . . . . . . . . Scanalyzers . | . . . . . . . . Garrison Access . | . . . . . . . . Total Hacks 48 | . . 4 22 7 . . 15 Successful 44 | . . 4 22 3 . . 15 Failed 4 | . . . . 4 . . . Catastrophic . | . . . . . . . . Database Lockouts . | . . . . . . . . Manual 2 | . . . . 2 . . . Terminals 4 | . . . . 4 . . . Fabricators 2 | . . . . 2 . . . Repair Stations 1 | . . . . 1 . . . Recycling Units . | . . . . . . . . Scanalyzers . | . . . . . . . . Garrison Access . | . . . . . . . . Terminal Hacks 42 | . . 4 22 1 . . 15 Record 33 | . . 4 20 . . . 9 Prototype ID Bank 5 | . . . . 1 . . 4 Open Door 3 | . . . 1 . . . 2 Proto ID Catalog 1 | . . . 1 . . . . Fabricator Hacks . | . . . . . . . . Repair Station Hacks 1 | . . . . 1 . . . Refit 1 | . . . . 1 . . . Recycling Unit Hacks . | . . . . . . . . Scanalyzer . | . . . . . . . . Garrison Access Hacks . | . . . . . . . . Unauthorized Hacks 1 | . . . . 1 . . . Terminals . | . . . . . . . . Fabricators 1 | . . . . 1 . . . Fabnet 1 | . . . . 1 . . . Repair Stations . | . . . . . . . . Recycling Units . | . . . . . . . . Scanalyzers . | . . . . . . . . Garrison Access . | . . . . . . . . Data Cores Recovered . | . . . . . . . . Used . | . . . . . . . . Hacking Detections . | . . . . . . . . Full Trace Events . | . . . . . . . . Feedback Events . | . . . . . . . . Feedback Blocked . | . . . . . . . . Robot Schematics Acquired . | . . . . . . . . Robots Built . | . . . . . . . . Authchips . | . . . . . . . . Time . | . . . . . . . . Total Robot Build Rating . | . . . . . . . . Part Schematics Acquired . | . . . . . . . . Parts Built . | . . . . . . . . Authchips . | . . . . . . . . Time . | . . . . . . . . Total Part Build Rating . | . . . . . . . . Part Studies Acquired . | . . . . . . . . Parts Repaired . | . . . . . . . . Time . | . . . . . . . . Parts Recycled . | . . . . . . . . Recycled Matter . | . . . . . . . . Retrieved Matter . | . . . . . . . . Retrieved Components . | . . . . . . . . Parts Scanalyzed . | . . . . . . . . Part Schematics Acquired . | . . . . . . . . Parts Damaged . | . . . . . . . . Bothacking | -11 -10 -10 -7 -5 -5 -5 -5 ------------ Run | Yrd Mat Sub Scr Fac Upp Upp War Used RIF Installer . | . . . . . . . . Robots Hacked . | . . . . . . . . Non-combat . | . . . . . . . . Combat . | . . . . . . . . Robot Hacks Applied . | . . . . . . . . Relay Couplers Released . | . . . . . . . . Fabnet Peak Effective % . | . . . . . . . . Robots Rewired . | . . . . . . . . Allies Hacked . | . . . . . . . . Hacks Repelled . | . . . . . . . . Allies | -11 -10 -10 -7 -5 -5 -5 -5 -------- Run | Yrd Mat Sub Scr Fac Upp Upp War Total Allies 1 | . . . . . . . 1 Largest Group 1 | . . . . . . . 1 Highest-Rated Group 48 | . . . . . . . 48 Highest-Rated Ally 48 | . . . . . . . 48 Total Orders . | . . . . . . . . Ally Attacks 3 | . . . . . . . 3 Total Damage 16 | . . . . . . . 16 Kills . | . . . . . . . . Allies Corrupted . | . . . . . . . . Allies Melted . | . . . . . . . . Intel | -11 -10 -10 -7 -5 -5 -5 -5 ------- Run | Yrd Mat Sub Scr Fac Upp Upp War Active Infowar (turns) . | . . . . . . . . Robot Analysis Total . | . . . . . . . . Derelict Logs Recovered 3 | . . . 2 . . 1 . Drone Launches . | . . . . . . . . Drone Recoveries . | . . . . . . . . Exploration | -11 -10 -10 -7 -5 -5 -5 -5 ------------- Run | Yrd Mat Sub Scr Fac Upp Upp War Turns Passed 5571 | 40 277 282 1978 478 1402 430 684 Spaces Moved 4838 | 35 174 254 1635 349 860 316 1215 Core 135 | 34 . . . . 99 . 2 Treads 470 | . . . . . 459 11 . Legs 2254 | 1 24 50 1635 260 . 276 8 Wheels . | . . . . . . . . Hover 716 | . . . . 89 302 . 325 Flight 1263 | . 150 204 . . . 29 880 Fastest Speed 29 | 50 37 37 120 66 66 35 29 Average Speed 100 | 83 48 53 120 120 147 113 48 Slowest Speed 500 | 120 120 120 120 190 500 165 195 Overloaded Moves . | . . . . . . . . Propulsion Burnouts . | . . . . . . . . Robots Hopped 5 | . 4 . . . . . 1 Potential Cave-ins . | . . . . . . . . Cave-ins Triggered . | . . . . . . . . Exploration Rate (%) 43 | 3 39 15 86 10 57 44 92 Regions Visited 7 Branch Regions 5 Pre-discovered Areas 3 | . . 1 1 . . . 1 Known Exits Taken 1 | . . . . 1 . . . Unknown Exits Taken 6 | 1 1 1 1 . 1 1 . Scrap Searched 6 | . . . 3 . 1 2 . Spaces Dug . | . . . . . . . . Terrain Destroyed . | . . . . . . . . Melee . | . . . . . . . . Projectile . | . . . . . . . . AOE . | . . . . . . . . Terrain Rammed . | . . . . . . . . Walls Destroyed . | . . . . . . . . Machines Disabled . | . . . . . . . . Actions | -11 -10 -10 -7 -5 -5 -5 -5 --------- Run | Yrd Mat Sub Scr Fac Upp Upp War Total 5372 | 46 336 346 1655 381 949 353 1306 Wait 303 | . 149 59 3 6 30 3 53 Move 4821 | 34 165 253 1634 348 859 315 1213 Hop 5 | . 4 . . . . . 1 Pick Up 43 | 7 3 3 7 2 9 3 9 Fast Attach . | . . . . . . . . Attach 38 | 5 . 4 3 2 11 4 9 Detach 13 | . . . 1 1 4 1 6 Swap 2 | . 2 . . . . . . Drop 22 | . . . 7 3 2 . 10 Fire 40 | . 13 27 . . . . . Melee 84 | . . . . 19 34 27 4 Ram . | . . . . . . . . Kick . | . . . . . . . . Crush . | . . . . . . . . Escape Stasis . | . . . . . . . . Rewire 1 | . . . . . . . 1 Trap . | . . . . . . . . Miscellaneous . | . . . . . . . . Route ------- -11/Scrapyard -10/Materials (discovered 3 exits: [*Mat x2] / *Sub) -10/Subcaves (discovered 2 exits: Rec / *Scr) -7/Scraptown (discovered 2 exits: *Fac x2) -5/Factory (discovered 3 exits: Fac x2 / *Upp) -5/Upper Caves -5/Upper Caves -5/Warlord History --------- Turn | Location | Event 24 | -11/Scrapyard | Discovered new exit (range 15) 41 | -11/Scrapyard | Entered Materials 42 | -10/Materials | Met a group of wandering Federalists 153 | -10/Materials | Discovered new exit (range 4) 266 | -10/Materials | Discovered new exit (range 15) 312 | -10/Materials | Discovered new exit (range 7) 317 | -10/Materials | Build established: Mutant 318 | -10/Materials | Entered Subcaves 318 | -10/Subcaves | Accompanied by 1 ally 319 | -10/Subcaves | Continued accompanying wandering Federalists (1) 319 | -10/Subcaves | Approached by a straggling Scientist 365 | -10/Subcaves | A swath of the cavern ceiling suddenly collapsed 382 | -10/Subcaves | Visited Clippyterm 383 | -10/Subcaves | Identified exit to Recycling 383 | -10/Subcaves | Learned location of Extension (-6) 424 | -10/Subcaves | Shifting Twisted Machinery released Sub. Power Source 430 | -10/Subcaves | Shifting Twisted Machinery released Barrage Gun 519 | -10/Subcaves | Core integrity fell below 50% 563 | -10/Subcaves | Lost 4 parts (1p2n1w) 593 | -10/Subcaves | Wandering Federalist uncovered a shortcut to Scraptown 600 | -10/Subcaves | Entered Scraptown 774 | -7/Scraptown | Visited CR-KLE's Repair Center 782 | -7/Scraptown | CR-KLE repaired 5 parts 817 | -7/Scraptown | Heard Great Nut preacher, LISTEN AND RECITE! 820 | -7/Scraptown | Visited IN-MT5's Study 848 | -7/Scraptown | Visited TADAMA 970 | -7/Scraptown | Discovered new exit (range 9) 1057 | -7/Scraptown | Scanned Subdweller tech in exchange for log data 1060 | -7/Scraptown | Learned 8 Factory zone layouts 1061 | -7/Scraptown | Learned location of Warlord (-5) 1129 | -7/Scraptown | Visited The Evicted 1174 | -7/Scraptown | Visited UFD Registry 1174 | -7/Scraptown | Registered with UFD as "Boltdome" 1184 | -7/Scraptown | Visited SPCMW 1233 | -7/Scraptown | Visited Junk Repository 1276 | -7/Scraptown | Visited Fellowship of the Rings 1451 | -7/Scraptown | Visited Scrap Suit Storage 1461 | -7/Scraptown | Found Scrap Suit 1497 | -7/Scraptown | Visited LU-1G1's Boring Crew 1524 | -7/Scraptown | Visited Research Penetration Think Tank 1697 | -7/Scraptown | Visited Botcube Research 1718 | -7/Scraptown | Found Botcube 1743 | -7/Scraptown | Visited Scrapoid Pod Storage 1771 | -7/Scraptown | Visited Sword Containment 1783 | -7/Scraptown | Found Prototype Slashing Weapon 1785 | -7/Scraptown | Identified Companion Sword 1900 | -7/Scraptown | Discovered new exit (range 5) 1953 | -7/Scraptown | Visited Science Guys 2001 | -7/Scraptown | Visited Infowarlord's Domain 2040 | -7/Scraptown | Visited Abandonware Association 2065 | -7/Scraptown | Learned abandonware demo "SHUTEYE.EXE" 2065 | -7/Scraptown | Learned abandonware demo "REVENGE.EXE" 2127 | -7/Scraptown | Visited Cartography Club 2159 | -7/Scraptown | Found Surveybot 17 Chip 2314 | -7/Scraptown | Build established: Scrapper 2498 | -7/Scraptown | Met Optimus 2498 | -7/Scraptown | Accepted into 0bPrime 2578 | -7/Scraptown | Entered Factory 2578 | -5/Factory | Evolved 10 slots: Power x2, Propulsion x3, Utility x4, Weapon x1 2579 | -5/Factory | Identified exit to Upper Caves 2579 | -5/Factory | Identified exit to Factory 2865 | -5/Factory | Build established: Mutant 3056 | -5/Factory | Entered Upper Caves 3074 | -5/Upper Caves | Spotted B-75 Beast 3368 | -5/Upper Caves | Lost 4 parts (3n1w) 3784 | -5/Upper Caves | Destroyed B-75 Beast 4285 | -5/Upper Caves | Build established: Scavenger-Mutant 4438 | -5/Upper Caves | Discovered new exit (range 7) 4458 | -5/Upper Caves | Entered another Upper Caves area 4568 | -5/Upper Caves | Spotted B-75 Beast 4729 | -5/Upper Caves | Attracted the attention of an 0b10 checkpoint 4786 | -5/Upper Caves | Lost 3 parts (1p1n1w) 4834 | -5/Upper Caves | Learned Factory terminal intel 4846 | -5/Upper Caves | Core integrity fell below 50% 4882 | -5/Upper Caves | Discovered new exit (range 8) 4888 | -5/Upper Caves | Entered Warlord 4893 | -5/Warlord | Lost 4 parts (3n1u) 4901 | -5/Warlord | System corruption cleaned by Quarantine Array 5023 | -5/Warlord | Learned Quarantine trap positions 5023 | -5/Warlord | Learned 4 Research zone layouts 5023 | -5/Warlord | Learned 4 Research zone layouts 5023 | -5/Warlord | Learned Testing security intel 5023 | -5/Warlord | Learned Research repair station intel 5060 | -5/Warlord | Found Signal Generator 5129 | -5/Warlord | Warlord's base attacked by MAIN.C 5156 | -5/Warlord | Build established: Mutant 5339 | -5/Warlord | Rebuked by Warlord 5419 | -5/Warlord | Opened side exit 5434 | -5/Warlord | Spotted Executioner 5479 | -5/Warlord | Warlord forces counterattacked 5510 | -5/Warlord | Spotted Executioner 5551 | -5/Warlord | Botcube activated 5556 | -5/Warlord | Lost 4 allies 5557 | -5/Warlord | Core integrity fell below 20% 5563 | -5/Warlord | Spotted Executioner 5565 | -5/Warlord | Botcube completed mutation into treaded form, armed with 1 gun. 5572 | -5/Warlord | Destroyed by H-77 Assassin with Coil Gun Last Messages --------------- Slug penetrates Wall. Knocked back. S-27 Virus destroyed. Botcube completes transformation. Penetrated by Slug. Carbon-fiber Leg destroyed. Penetrated by Slug. Wall collapses. Slug penetrates Wall. Acquired VTOL Module. Slug penetrates Mutated Botcube. Penetrated by Slug. H-77 Assassin suffers critical hit (Burn). Penetrated by Slug. Flexi-carbon Leg destroyed. Slug penetrates 12-6NX(b). 12-6NX(b) destroyed. Penetrated by Slug. [Achievement: Just Browsing] [Achievement: Achiever] Map ----- +----------------------------------------------------+ | ???????# #??????????????????? | | ??????## ##?????????????????? | | ?????## #?????????????????? | | ?????# #?????????????????? | | ?????# ##??????????????? ? | | ?????# #????????????? ?? | | ?????# ##??????????? #??? | | ?????## #?????????? "##?? | | ??????### ##????? ? " #?? | | ????????## #????## "" #?? | | ?????????## #?####" "#????? | | ??????????# ###"/% ##????? | | ??????????# %= ###?? | | ??????????##*%" %"## ##? | | ???????????## "## ?? | | ????????????## =[== #? ?? | | ????????????# =*h=[![#? #?? | | ????????????## !!=%%[=#? #?? | | ?????????????###=%*h%!#? ##? | | #?????????????#=]!*%!!###[ #? | | ############??? ##=[%h;#;%*#?? | | """""""""""#???###!!=%*% =#??? | | *%!%["= #?####=!!=%%=x###?? | | %%%= !=% ###=="==%=]M =;;#?? | | %*!==%!!!= /%**%! =]%=#= ##?? | | ==!=% =%%%=%!=!% ="""# @#??? | | [%%%* = = #### "# # #??? | | """" """"""#??## "## # ##?? | | """""""""""#???# ##### #?? | | ############???# #### # #?? | | #??????????????# #?# #?? | | ??????????????? ### #?? | | ?????????????? ### ##?? | | ?????????????# ##?# #??? | | ????????????? ???## ##??? | | ????????????# ????## #???? | | ????????????# #?????# #???? | | ????????????# ??????## ##??? | | ????????????# ??????## #??? | | ????????????? ??????## #??? | | ????????????????????# #??? | | ????????????????????# #??? | | ????????????????????# #??? | | ????????????????????# #??? | | ????????????????????## ##??? | | ????????????????????? #???? | | ???????????????????? ##???? | | ???????????????????######????? | | ?????????????????????????????? | | ?????????????????????????????? | +----------------------------------------------------+ Best States ------------- Heat Dissipation 40 Energy Generation 35 Energy Capacity 565 Matter Stores 300 Matter Capacity 300 Sight Range 16 Terrain Scan Density 10 Armor Coverage 225 Resistance: KI 20 Resistance: TH 20 Resistance: EX 20 Resistance: EM 20 Resistance: I 20 Resistance: S 20 Resistance: P 20 Evasion (%) 63 Melee Accuracy 5 Recoil Reduction 2 Offensive Hacking 10 Item Schematics ----------------- None Robot Schematics ------------------ None Fabricated ------------ Nothing Repaired ---------- Nothing Studied --------- None Alien Tech Used ----------------- None Achievements -------------- Achiever Frankenstein Just Browsing Challenges ------------ None Game ------ Seed GreatGravitonWings Manual? 0 Play Time 01:47:36 Cumulative 20.5 hours Start 2026.01.28 @ 11:28:24 End 2026.01.28 @ 13:18:41 Sessions 1 Manual Loads 0 Difficulty Adventurer Special Mode None Game No. 19 Rogue 8 Adventurer 6 Explorer 5 Win Type - Total 0 Types 0/0/0/0/0/0/0/0/0/0 Lore% 34 Gallery% 25 Achievement% 25 Wizard Run 0 Options --------- Layout 1 ASCII 0 Keyboard 0 Movement Numpad Keybinds 0 Fullscreen 1 Font 48/Crisp++ Map View 50x35 Zoom Use 0% Tactical HUD 0 Map Filters NONE Filters NONE Steam 1 RUN: adc05167-3fd2-4a1c-be7a-f6cf74eead4d